bitfinex-derivatives/quotes_SOLF0:USTF0_20250923
["timestamp","ask_amount","ask_price","bid_price","bid_amount"]
[1758599522956,11.4161,217.4,217.34,6.99]
[1758599523354,11.4161,217.4,217.3,11.3178]
[1758599523556,4.1365,217.38,217.3,7.18]
[1758599523756,7.28,217.37,217.3,7.18]
[1758599523955,7.28,217.37,217.25,2.28274211]
[1758599523956,7.28,217.37,217.26,116.1]
[1758599524153,4.1369,217.36,217.26,127.4187]
[1758599525363,7.28,217.35,217.26,127.4187]
[1758599529759,7.28,217.35,217.29,7.18]
[1758599530963,7.28,217.35,217.26,123.24]
[1758599532667,8.74346592,217.35,217.26,123.24]
[1758599532867,12.88066592,217.35,217.26,123.24]
[1758599533163,1.46346592,217.33,217.26,7.18]
[1758599533474,1.46346592,217.29,217.15,64.4119]
[1758599533766,1.46346592,217.29,217.2,7.18]
[1758599534867,5.60166592,217.29,217.2,7.18]
[1758599535461,1.46346592,217.27,217.2,7.18]
[1758599535662,12.88206592,217.27,217.2,7.18]
[1758599536062,8.74346592,217.27,217.2,7.18]
[1758599537266,7.02,217.24,217.2,7.18]
[1758599538674,8.48346592,217.28,217.19,7.31]
[1758599539473,4.1385,217.27,217.19,7.31]
[1758599540166,4.139,217.25,217.19,7.31]
[1758599540369,7.02,217.24,217.15,1.46346592]
[1758599541074,7.02,217.24,217.15,8.77346592]
[1758599541371,7.02,217.24,217.18,8.77346592]
[1758599543873,7.02,217.24,217.18,7.31]
[1758599544482,7.02,217.28,217.2,7.31]
[1758599544767,5.60086592,217.33,217.23,7.31]
[1758599544974,7.02,217.32,217.23,7.31]
[1758599545873,7.02,217.32,217.26,7.31]
[1758599546869,7.02,217.32,217.26,11.4487]
[1758599547373,7.02,217.36,217.28,1.46346592]
[1758599548374,16.92495126,217.4,217.29,7.31]
[1758599548566,11.88899868,217.4,217.29,7.31]
[1758599548871,7.75279868,217.4,217.3,1.46346592]
[1758599549666,4.1365,217.38,217.3,1.46346592]
[1758599550065,7.02,217.37,217.3,1.46346592]
[1758599551468,4.1368,217.36,217.3,1.46346592]
[1758599551862,20.83513027,217.37,217.3,1.46346592]
[1758599552474,20.83513027,217.37,217.29,7.31]
[1758599552773,20.83513027,217.37,217.3,1.46346592]
[1758599553871,24.97183027,217.37,217.3,1.46346592]
[1758599554668,20.83513027,217.37,217.3,1.46346592]
[1758599556179,7.02,217.37,217.3,1.46346592]
[1758599556673,7.02,217.37,217.3,5.60146592]
[1758599556876,5.03595258,217.43,217.37,7.53]
[1758599557179,7.55392887,217.46,217.37,7.53]
[1758599557180,7.13,217.45,217.39,1.46346592]
[1758599557374,8.59346592,217.45,217.35,1.46346592]
[1758599557971,8.59346592,217.45,217.33,7.53]
[1758599557972,12.72856592,217.45,217.33,7.53]
[1758599558181,12.72856592,217.45,217.35,1.46346592]
[1758599558675,7.13,217.42,217.35,1.46346592]
[1758599560383,4.1359,217.41,217.35,1.46346592]
[1758599560980,7.13,217.42,217.35,1.46346592]
[1758599561873,11.2657,217.42,217.35,1.46346592]
[1758599563378,4.1361,217.4,217.35,1.46346592]
[1758599563880,7.13,217.39,217.33,8.99346592]
[1758599565581,4.1365,217.38,217.33,1.46346592]
[1758599565984,7.13,217.37,217.33,1.46346592]
[1758599566183,4.1365,217.38,217.33,1.46346592]
[1758599566380,7.13,217.37,217.31,1.46346592]
[1758599568188,7.13,217.37,217.34,7.53]
[1758599568375,7.13,217.4,217.34,7.53]
[1758599569286,4.1363,217.39,217.34,7.53]
[1758599569787,7.13,217.38,217.34,7.53]
[1758599571779,7.13,217.41,217.33,7.53]
[1758599572189,7.13,217.41,217.34,1.46346592]
[1758599572391,11.2661,217.41,217.34,1.46346592]
[1758599577083,4.1363,217.39,217.33,7.53]
[1758599577282,11.2663,217.39,217.33,7.53]
[1758599580195,4.1366,217.37,217.3,7.53]
[1758599580494,7.13,217.36,217.3,7.53]
[1758599582096,18.94926628,217.45,217.36,7.1]
[1758599582296,7.31,217.44,217.36,7.1]
[1758599582497,4.1357,217.42,217.36,7.1]
[1758599582890,11.4457,217.42,217.36,7.1]
[1758599583086,7.31,217.42,217.37,1.46346592]
[1758599583499,7.31,217.42,217.39,7.1]
[1758599583696,12.34595258,217.46,217.39,1.46346592]
[1758599583892,7.31,217.46,217.39,1.46346592]
[1758599584293,11.4451,217.46,217.39,1.46346592]
[1758599586404,7.31,217.5,217.42,7.1]
[1758599586590,7.31,217.5,217.43,1.46346592]
[1758599587004,13.49894293,217.51,217.45,1.46346592]
[1758599587203,7.31,217.52,217.45,1.46346592]
[1758599588097,7.31,217.52,217.45,8.56346592]
[1758599589901,7.31,217.5,217.41,7.1]
[1758599590203,1.46346592,217.47,217.38,1.46346592]
[1758599590403,7.31,217.44,217.37,7.1]
[1758599590606,64.3138,217.49,217.34,1.46346592]
[1758599590607,7.31,217.42,217.34,1.46346592]
[1758599591300,11.4457,217.42,217.34,1.46346592]
[1758599593902,4.1361,217.4,217.34,1.46346592]
[1758599594106,7.31,217.39,217.32,8.56346592]
[1758599594707,7.31,217.39,217.32,7.1]
[1758599595801,4.1365,217.38,217.32,7.1]
[1758599596104,7.31,217.39,217.32,7.1]
[1758599597603,7.31,217.39,217.26,2.2855756]
[1758599597909,7.31,217.39,217.27,7.2]
[1758599599809,11.4464,217.39,217.27,7.2]
[1758599600108,7.31,217.39,217.27,7.2]
[1758599600711,7.31,217.39,217.29,7.2]
[1758599602510,11.4463,217.39,217.29,7.2]
[1758599607514,11.4463,217.39,217.29,4.1381]
[1758599607714,11.4463,217.39,217.3,7.2]
[1758599608504,4.1359,217.41,217.3,7.2]
[1758599609110,4.1359,217.41,217.32,4.1376]
[1758599609311,4.1359,217.41,217.33,7.2]
[1758599611618,64.3337,217.42,217.33,7.2]
[1758599611817,7.72,217.41,217.27,7.59]
[1758599612821,4.1367,217.37,217.28,4.1384]
[1758599613123,11.8567,217.37,217.28,4.1384]
[1758599613314,11.8567,217.37,217.29,7.59]
[1758599615524,4.1371,217.35,217.29,7.59]
[1758599616829,7.72,217.37,217.29,7.59]
[1758599618924,11.8567,217.37,217.29,7.59]
[1758599619324,7.72,217.37,217.29,7.59]
[1758599619524,4.1372,217.35,217.29,7.59]
[1758599620533,7.72,217.37,217.29,7.59]
[1758599620728,7.72,217.41,217.29,7.59]
[1758599620930,12.75595258,217.45,217.37,7.59]
[1758599621331,4.1353,217.44,217.37,7.59]
[1758599621534,7.72,217.44,217.33,11.7273]
[1758599621725,72.0478,217.44,217.33,7.59]
[1758599621930,7.72,217.39,217.29,7.59]
[1758599622126,4.1366,217.37,217.29,7.59]
[1758599622637,4.1366,217.37,217.29,11.7281]
[1758599623834,7.72,217.39,217.29,11.7281]
[1758599624135,7.72,217.39,217.3,7.59]
[1758599625936,4.1362,217.4,217.32,7.59]
[1758599626239,16.89165258,217.43,217.32,7.59]
[1758599626427,11.8557,217.43,217.32,7.59]
[1758599626633,7.72,217.43,217.34,4.1372]
[1758599626835,7.72,217.43,217.32,7.59]
[1758599627341,7.72,217.43,217.34,7.59]
[1758599627741,7.72,217.41,217.34,7.59]
[1758599628042,7.72,217.41,217.31,4.1378]
[1758599628644,7.72,217.41,217.32,7.59]
[1758599628827,4.1361,217.4,217.32,7.59]
[1758599634048,7.72,217.39,217.32,7.59]
[1758599635341,11.8564,217.39,217.32,7.59]
[1758599638147,7.72,217.36,217.28,9.8755756]
[1758599638343,7.72,217.36,217.28,7.59]
[1758599638543,7.72,217.36,217.28,11.7282]
[1758599639246,7.72,217.36,217.29,7.59]
[1758599640047,5.03595258,217.38,217.25,116.9688]
[1758599640246,7.72,217.34,217.26,7.59]
[1758599641845,7.72,217.34,217.27,4.1385]
[1758599642046,7.72,217.34,217.26,7.59]
[1758599642548,4.1377,217.32,217.26,7.59]
[1758599643043,7.41,217.32,217.23,7.35]
[1758599644648,5.03595258,217.37,217.26,4.1387]
[1758599644841,7.41,217.37,217.27,7.35]
[1758599645549,11.5468,217.37,217.24,2.2855756]
[1758599645750,11.5468,217.37,217.25,7.35]
[1758599646545,11.5468,217.37,217.27,4.1385]
[1758599646844,11.5468,217.37,217.28,7.35]
[1758599647046,16.58215258,217.4,217.28,7.35]
[1758599647348,11.5462,217.4,217.31,7.35]
[1758599647555,9.17165258,217.43,217.31,7.35]
[1758599647754,7.41,217.43,217.32,4.1375]
[1758599648253,7.41,217.43,217.33,7.35]
[1758599648455,5.03595258,217.44,217.35,7.35]
[1758599648648,5.03595258,217.45,217.35,7.35]
[1758599649156,7.41,217.44,217.35,7.35]
[1758599650053,69.36215258,217.45,217.35,7.35]
[1758599650358,7.41,217.41,217.31,7.35]
[1758599651352,5.03595258,217.44,217.35,7.35]
[1758599651550,5.03595258,217.45,217.35,7.35]
[1758599651949,5.03595258,217.45,217.3,64.3684]
[1758599651950,7.41,217.44,217.32,70.7]
[1758599652154,12.44595258,217.44,217.33,7.35]
[1758599652755,4.1355,217.43,217.33,7.35]
[1758599652952,7.41,217.42,217.33,7.35]
[1758599655967,4.1359,217.41,217.33,7.35]
[1758599656261,7.11,217.4,217.3,115.08]
[1758599656457,7.11,217.4,217.33,4.1374]
[1758599656665,7.11,217.4,217.34,7.45]
[1758599657760,7.11,217.4,217.31,1.46222429]
[1758599657962,7.11,217.38,217.3,7.45]
[1758599658766,11.2465,217.38,217.3,7.45]
[1758599659158,7.11,217.38,217.3,7.45]
[1758599662466,7.11,217.38,217.3,11.5879]
[1758599662763,1.46222429,217.41,217.32,1.46222429]
[1758599662961,7.11,217.4,217.32,8.91222429]
[1758599663266,11.2461,217.4,217.32,7.45]
[1758599664270,5.03595258,217.43,217.34,7.45]
[1758599664468,6.49817687,217.43,217.34,7.45]
[1758599664670,7.11,217.4,217.34,7.45]
[1758599664864,1.46222429,217.39,217.3,7.45]
[1758599665071,1.46222429,217.37,217.3,7.45]
[1758599666770,7.11,217.36,217.3,7.45]
[1758599666974,1.46222429,217.35,217.26,8.91222429]
[1758599668581,1.46222429,217.35,217.26,7.45]
[1758599668769,1.46222429,217.33,217.26,7.45]
[1758599669168,7.11,217.34,217.26,7.45]
[1758599671370,11.2472,217.34,217.26,7.45]
[1758599673979,7.11,217.34,217.26,7.45]
[1758599674581,4.1374,217.33,217.26,7.45]
[1758599674881,7.11,217.34,217.26,7.45]
[1758599675081,8.57222429,217.34,217.26,7.45]
[1758599676884,12.70962429,217.34,217.26,7.45]
[1758599677780,11.2474,217.34,217.26,7.45]
[1758599677986,8.57222429,217.34,217.26,7.45]
[1758599683194,1.46222429,217.32,217.26,7.45]
[1758599683493,7.51,217.31,217.26,7.45]
[1758599684092,8.97222429,217.32,217.26,7.45]
[1758599688988,7.51,217.31,217.21,8.79222429]
[1758599689297,1.46222429,217.3,217.21,123.69222429]
[1758599689899,7.51,217.31,217.22,7.33]
[1758599690203,12.54595258,217.39,217.3,7.33]
[1758599690495,7.51,217.39,217.32,7.33]
[1758599690888,7.51,217.39,217.33,1.46222429]
[1758599691088,7.51,217.39,217.32,7.33]
[1758599691684,7.51,217.39,217.33,1.46222429]
[1758599692092,11.6462,217.39,217.33,1.46222429]
[1758599692696,7.51,217.39,217.33,1.46222429]
[1758599692900,7.51,217.43,217.35,1.46222429]
[1758599693291,7.51,217.43,217.37,1.46222429]
[1758599694195,7.51,217.43,217.36,7.33]
[1758599696904,8.97222429,217.42,217.32,8.79222429]
[1758599697204,7.51,217.42,217.35,7.33]
[1758599699098,7.51,217.39,217.28,7.33]
[1758599699297,7.51,217.39,217.17,36.17499248]
[1758599699298,7.51,217.39,217.31,8.79222429]
[1758599699990,7.51,217.39,217.33,1.46222429]
[1758599700900,4.1356,217.43,217.35,1.46222429]
[1758599701698,4.1359,217.41,217.34,7.18]
[1758599703502,4.1362,217.39,217.34,7.18]
[1758599703707,6.99,217.39,217.31,1.46222429]
[1758599704009,1.46222429,217.38,217.3,8.64222429]
[1758599704307,6.99,217.34,217.3,7.18]
[1758599705400,6.99,217.34,217.26,8.64222429]
[1758599705605,4.1373,217.33,217.26,7.18]
[1758599708410,4.1373,217.33,217.22,7.18]
[1758599708411,1.46222429,217.3,217.22,7.18]
[1758599709809,4.1381,217.29,217.22,7.18]
[1758599710108,6.99,217.28,217.22,7.18]
[1758599711615,8.45222429,217.28,217.22,7.18]
[1758599712902,1.46222429,217.28,217.19,347.78]
[1758599713107,6.99,217.27,217.19,347.78]
[1758599713514,1.46222429,217.26,217.19,347.78]
[1758599715609,1.46222429,217.26,217.14,0.8008008]
[1758599715610,6.99,217.26,217.14,0.8008008]
[1758599715809,1.46222429,217.24,217.15,7.18]
[1758599716914,5.60132429,217.24,217.15,7.18]
[1758599718212,8.78222429,217.24,217.15,7.18]
[1758599718516,7.32,217.24,217.15,7.18]
[1758599718703,4.1392,217.23,217.15,7.18]
[1758599719704,7.32,217.24,217.15,7.18]
[1758599721815,11.4591,217.24,217.15,7.18]
[1758599723008,7.32,217.24,217.15,7.18]
[1758599723214,4.1386,217.27,217.15,7.18]
[1758599723419,7.32,217.32,217.2,2.28872554]
[1758599723617,7.32,217.32,217.21,7.11]
[1758599724823,4.1379,217.3,217.21,7.11]
[1758599725823,7.32,217.32,217.21,7.11]
[1758599726424,7.32,217.32,217.22,7.11]
[1758599727012,352.93595258,217.38,217.23,6.42782554]
[1758599727013,347.9,217.38,217.23,6.42782554]
[1758599727323,7.32,217.37,217.27,7.11]
[1758599728913,4.1369,217.36,217.27,7.11]
[1758599729725,4.1363,217.39,217.29,7.11]
[1758599730525,4.1363,217.39,217.3,7.3]
[1758599731324,11.3463,217.39,217.3,7.3]
[1758599731514,7.21,217.39,217.3,7.3]
[1758599731721,4.1358,217.42,217.32,2.28872554]
[1758599732026,4.1358,217.42,217.33,7.3]
[1758599732720,11.346,217.4,217.33,7.3]
[1758599734328,7.21,217.37,217.29,7.3]
[1758599735625,11.3465,217.37,217.29,7.3]
[1758599735927,7.21,217.37,217.25,7.3]
[1758599736926,4.137,217.35,217.25,7.3]
[1758599738629,4.137,217.35,217.27,7.3]
[1758599740029,7.21,217.34,217.27,7.3]
[1758599740223,71.5716,217.32,217.22,7.3]
[1758599740930,4.1381,217.29,217.22,7.3]
[1758599742329,11.3481,217.29,217.22,7.3]
[1758599744332,7.21,217.29,217.22,7.3]
[1758599745035,4.1376,217.32,217.22,7.3]
[1758599745428,4.138,217.3,217.22,7.3]
[1758599751133,7.21,217.31,217.22,11.4393]
[1758599751334,7.21,217.31,217.23,7.3]
[1758599753331,11.3477,217.31,217.23,7.3]
[1758599757637,3.58093738,217.3,217.23,7.3]
[1758599757842,11.3477,217.31,217.23,7.3]
[1758599758031,3.58093738,217.3,217.23,7.3]
[1758599758231,11.3477,217.31,217.23,7.3]
[1758599758538,3.5808973,217.3,217.23,7.3]
[1758599758739,11.3477,217.31,217.23,7.3]
[1758599758935,11.3477,217.31,217.23,4.1392]
[1758599759138,4.1377,217.31,217.24,7.3]
[1758599759939,11.3477,217.31,217.24,7.3]
[1758599762139,4.1372,217.34,217.24,7.3]
[1758599762332,7.52,217.32,217.24,7.3]
[1758599762532,3.58162106,217.31,217.24,7.3]
[1758599762737,7.52,217.32,217.24,7.3]
[1758599763045,3.58166259,217.31,217.24,7.3]
[1758599763241,7.52,217.32,217.24,7.3]
[1758599763442,3.58210445,217.31,217.24,7.3]
[1758599763642,7.52,217.32,217.24,7.3]
[1758599763837,3.58210445,217.31,217.24,7.3]
[1758599764036,7.52,217.32,217.24,7.3]
[1758599764341,3.58256283,217.31,217.24,7.3]
[1758599764542,7.52,217.32,217.24,7.3]
[1758599764736,3.58273726,217.31,217.24,7.3]
[1758599765041,4.1377,217.31,217.24,7.3]
[1758599766838,7.52,217.32,217.24,7.3]
[1758599767041,3.58372848,217.31,217.24,7.3]
[1758599767249,7.52,217.32,217.24,7.3]
[1758599767449,3.58423416,217.31,217.24,7.3]
[1758599767642,7.52,217.32,217.24,7.3]
[1758599767948,3.5842412,217.31,217.24,7.3]
[1758599768143,7.52,217.32,217.24,7.3]
[1758599768350,3.58496413,217.31,217.24,7.3]
[1758599768652,7.52,217.32,217.24,7.3]
[1758599768942,3.58492253,217.31,217.24,11.4388]
[1758599769142,11.6575,217.32,217.24,11.4388]
[1758599769342,3.58490771,217.31,217.24,11.4388]
[1758599769544,4.1378,217.31,217.24,7.3]
[1758599770542,7.52,217.32,217.24,7.3]
[1758599770750,7.52,217.3,217.24,7.3]
[1758599770947,3.58536942,217.29,217.24,7.3]
[1758599771244,7.52,217.28,217.13,64.4159]
[1758599771444,7.52,217.28,217.19,7.67]
[1758599771648,11.6584,217.28,217.2,80.68]
[1758599774150,69.39525258,217.33,217.21,7.67]
[1758599774151,5.03595258,217.33,217.21,7.67]
[1758599774351,3.58508645,217.32,217.25,7.67]
[1758599774553,7.52,217.37,217.25,7.67]
[1758599774750,3.58365165,217.36,217.25,7.67]
[1758599774949,3.58365165,217.35,217.29,7.67]
[1758599775254,7.52,217.37,217.29,7.67]
[1758599775549,3.58390434,217.36,217.29,7.67]
[1758599775752,7.52,217.37,217.29,7.67]
[1758599775753,3.58390434,217.35,217.29,7.67]
[1758599775948,11.30390434,217.34,217.28,101.06]
[1758599776143,7.72,217.34,217.28,108.6]
[1758599776856,11.8571,217.34,217.28,108.6]
[1758599777859,7.72,217.34,217.28,108.6]
[1758599778753,3.58659126,217.33,217.28,102.5230011]
[1758599778955,7.72,217.34,217.28,110.0630011]
[1758599779156,3.58659126,217.33,217.28,102.5230011]
[1758599779355,7.72,217.34,217.28,110.0630011]
[1758599779557,3.58786603,217.33,217.29,7.54]
[1758599779759,11.8571,217.35,217.29,7.54]
[1758599779954,7.72,217.33,217.29,7.54]
[1758599781055,3.5891404,217.32,217.29,7.54]
[1758599781264,7.72,217.33,217.29,7.54]
[1758599781561,3.58910156,217.32,217.29,7.54]
[1758599781763,7.72,217.33,217.29,7.54]
[1758599781962,3.58910156,217.32,217.28,101.06]
[1758599782160,7.72,217.33,217.29,7.54]
[1758599782361,3.58940544,217.32,217.29,7.54]
[1758599782562,7.72,217.33,217.29,7.54]
[1758599782759,3.58940544,217.32,217.29,7.54]
[1758599783059,7.72,217.33,217.29,7.54]
[1758599783364,7.72,217.25,217.16,7.54]
[1758599783558,5.05273966,217.24,217.16,7.54]
[1758599783758,3.58973856,217.23,217.16,7.54]
[1758599783956,3.58973856,217.23,217.16,9.0030011]
[1758599784366,7.72,217.25,217.16,9.0030011]
[1758599784565,3.60854285,217.24,217.16,9.0030011]
[1758599784861,3.60854285,217.23,217.16,7.54]
[1758599785065,9.1830011,217.25,217.16,7.54]
[1758599785262,3.607989,217.24,217.16,7.54]
[1758599785564,3.607989,217.23,217.16,7.54]
[1758599785766,9.1830011,217.25,217.16,7.54]
[1758599785954,3.60798986,217.24,217.16,7.54]
[1758599786158,3.60798986,217.23,217.16,7.54]
[1758599786457,9.1830011,217.25,217.16,7.54]
[1758599786766,4.1393,217.23,217.16,7.54]
[1758599786961,64.3965,217.21,217.11,0.80145552]
[1758599787264,7.72,217.19,217.1,7.54]
[1758599787659,7.72,217.19,217.1,9.0030011]
[1758599787966,7.72,217.19,217.13,9.0030011]
[1758599789964,72.1205,217.19,217.07,0.80160321]
[1758599790166,1.4630011,217.13,217.05,7.54]
[1758599790470,1.4630011,217.11,217.02,8.34178789]
[1758599790966,7.72,217.12,217.03,1.4630011]
[1758599791155,7.72,217.12,217.02,8.34178789]
[1758599791359,7.72,217.12,217.02,9.0030011]
[1758599791360,9.1830011,217.12,217.02,9.0030011]
[1758599791760,7.72,217.12,217.05,7.64]
[1758599793861,7.72,217.12,217.05,11.7826]
[1758599794069,7.7,217.17,217.09,7.64]
[1758599795065,1.4630011,217.14,217.05,1.4630011]
[1758599795376,7.7,217.17,217.06,9.1030011]
[1758599795665,9.1630011,217.17,217.08,1.4630011]
[1758599796567,9.1630011,217.17,217.06,7.64]
[1758599796762,13.3035011,217.17,217.07,1.4630011]
[1758599797763,9.1630011,217.09,216.97,42.92]
[1758599798068,7.7,217.09,217.01,7.64]
[1758599798368,7.7,217.15,217.05,1.4630011]
[1758599798568,9.1630011,217.15,217.06,7.64]
[1758599799470,1.4630011,217.11,217.01,1.4630011]
[1758599799664,1.4630011,217.11,217.01,55.2030011]
[1758599800066,1.4630011,217.11,217.02,7.64]
[1758599800273,11.8414,217.12,217.04,1.4630011]
[1758599803666,11.8414,217.12,217.02,7.64]
[1758599803867,11.8414,217.12,217.04,1.4630011]
[1758599805364,7.7,217.12,217.08,1.4630011]
[1758599805568,7.7,217.14,217.08,1.4630011]
[1758599807576,4.1411,217.13,217.07,1.4630011]
[1758599807771,7.7,217.14,217.07,1.4630011]
[1758599808178,7.7,217.14,217.06,7.64]
[1758599808375,7.7,217.14,217.08,1.4630011]
[1758599808976,7.7,217.2,217.12,1.4630011]
[1758599810974,4.1401,217.19,217.12,1.4630011]
[1758599812778,7.7,217.18,217.12,1.4630011]
[1758599813776,11.8395,217.22,217.16,1.4630011]
[1758599814077,7.7,217.22,217.18,1.4630011]
[1758599814470,7.7,217.26,217.2,1.4630011]
[1758599815884,11.8387,217.26,217.2,1.4630011]
[1758599818488,4.1391,217.24,217.17,7.64]
[1758599818679,4.1391,217.24,217.18,1.4630011]
[1758599819082,7.7,217.21,217.17,9.1030011]
[1758599820183,7.7,217.21,217.15,1.4630011]
[1758599820184,4.1399,217.2,217.15,1.4630011]
[1758599820483,7.7,217.19,217.11,1.4630011]
[1758599820789,4.1408,217.15,217.09,1.4630011]
[1758599821382,7.22,217.16,217.11,1.4630011]
[1758599821583,7.22,217.2,217.11,1.4630011]
[1758599821785,7.22,217.2,217.13,1.4630011]
[1758599821991,7.22,217.19,217.15,1.4630011]
[1758599822485,7.22,217.13,217.05,1.4630011]
[1758599822683,7.22,217.13,217.04,7.26]
[1758599822885,7.22,217.13,217.05,1.4630011]
[1758599823287,4.1416,217.11,217.05,1.4630011]
[1758599823483,4.1416,217.11,217.04,7.26]
[1758599823886,7.22,217.13,217.05,1.4630011]
[1758599825794,64.4098,217.16,216.98,7.26]
[1758599825795,8.6830011,217.08,216.98,7.26]
[1758599826788,4.1428,217.05,216.98,7.26]
[1758599827089,8.6830011,217.05,216.96,0.80203736]
[1758599827484,4.1432,217.03,216.96,0.80203736]
[1758599827688,7.22,217.02,216.94,7.26]
[1758599828389,64.4321,217.09,216.93,2.26516787]
[1758599828390,7.22,217.08,216.98,1.4630011]
[1758599828589,7.22,217.08,217.0,1.4630011]
[1758599828786,64.4362,217.07,216.99,7.26]
[1758599829292,7.22,217.01,216.92,1.4630011]
[1758599829496,7.22,217.01,216.87,4.146]
[1758599829497,22.79200344,217.07,216.98,1.4630011]
[1758599829691,7.22,217.14,217.05,7.26]
[1758599829890,5.1628977,217.15,217.01,60.08]
[1758599829891,1.4630011,217.11,217.01,60.08]
[1758599830190,68.02185582,217.1,217.0,118.5030011]
[1758599830394,64.4271,217.1,217.0,118.5030011]
[1758599830702,7.22,217.08,217.0,1.4630011]
[1758599831500,4.1423,217.07,217.0,1.4630011]
[1758599833695,4.1423,217.07,216.99,124.32]
[1758599833899,7.22,217.08,216.99,124.32]
[1758599833900,4.1417,217.1,217.02,1.4630011]
[1758599834098,7.22,217.07,217.02,1.4630011]
[1758599834596,4.1417,217.1,216.95,0.80192647]
[1758599834597,64.4394,217.06,216.95,0.80192647]
[1758599834899,12.27960608,217.05,216.96,1.4630011]
[1758599835096,8.6830011,217.05,216.96,1.4630011]
[1758599835297,4.1431,217.03,216.94,7.26]
[1758599835496,64.4459,217.04,216.94,7.26]
[1758599836399,4.1472,216.82,216.79,2.986e-05]
[1758599836705,10.95688599,216.81,216.71,1.4630011]
[1758599836904,3.22688599,216.8,216.74,1.4630011]
[1758599837194,7.73,216.81,216.72,1.4630011]
[1758599837398,4.2548676,216.8,216.72,1.4630011]
[1758599837600,4.2548676,216.79,216.72,1.4630011]
[1758599837795,4.2548676,216.78,216.72,1.4630011]
[1758599837997,4.2548676,216.77,216.72,1.4630011]
[1758599838305,4.2548676,216.77,216.7,59.04]
[1758599838306,4.2548676,216.76,216.75,1.4630011]
[1758599838502,4.2548676,216.76,216.72,7.59]
[1758599838696,4.2548676,216.76,216.71,4.1491]
[1758599838697,4.2548676,216.75,216.71,4.1491]
[1758599838997,6.76e-05,216.74,216.73,7.59]
[1758599839404,7.73,216.87,216.73,7.59]
[1758599839709,7.73,216.91,216.78,7.59]
[1758599839998,7.73,216.89,216.77,74.88]
[1758599840206,3.45500619,216.88,216.77,74.88]
[1758599840503,3.45500619,216.88,216.75,7.59]
[1758599840699,7.73,216.87,216.75,7.59]
[1758599840899,3.45500619,216.86,216.76,130.8]
[1758599841102,3.45500619,216.85,216.76,130.8]
[1758599841303,7.73,216.87,216.76,130.8]
[1758599841504,3.44913189,216.86,216.76,130.8]
[1758599841702,3.44913189,216.85,216.76,130.8]
[1758599841900,3.44913189,216.84,216.76,130.8]
[1758599842098,7.73,216.87,216.76,130.8]
[1758599842406,3.44687556,216.86,216.75,7.59]
[1758599842607,3.44687556,216.85,216.77,130.78]
[1758599842801,3.44687556,216.85,216.75,11.7382]
[1758599842802,7.73,216.87,216.75,11.7382]
[1758599843003,3.44629242,216.86,216.76,130.46]
[1758599843202,3.44629242,216.85,216.76,130.46]
[1758599843405,7.73,216.87,216.77,4.1479]
[1758599843708,3.44367077,216.86,216.77,4.1479]
[1758599843908,7.73,216.87,216.77,4.1479]
[1758599844110,3.44360558,216.86,216.77,4.1479]